[Event "Alef Super Stars Standard 2023"]
[Site "Almamsha"]
[Date "2023.11.29"]
[Round "3.2"]
[White "Sjugirov, Sanan"]
[Black "Nihal Sarin"]
[Result "1/2-1/2"]
[ECO "B90"]
[WhiteElo "2703"]
[BlackElo "2692"]
[Annotator "TA"]
[PlyCount "72"]
[EventDate "2023.11.27"]
[EventType "tourn"]
[EventCountry "UAE"]
[SourceTitle "playchess.com"]
[Source "ChessBase"]
[SourceQuality "1"]
[TimeControl "40/5400+30:1800+30"]

{[%evp 24,72,32,20,0,0,18,0,3,0,35,0,0,0,0,0,0,0,0,-33,7,-21,-16,0,-2,-22,20,-1,-8,-6,-8,-39,-36,-34,-38,-45,-38,-35,0,-18,-6,-15,-21,-14,-14,-20,0,0,0,0,0]} 1. e4 {[%emt 0:00:05]} c5 {[%emt 0:00:35]} 2. Nf3 {[%emt 0:00:11]} d6 {[%emt 0:00:33]} 3. d4 {[%emt 0:00:23]} cxd4 {[%emt 0:00:08]} 4. Nxd4 {[%emt 0:00:05]} Nf6 {[%emt 0:00:06]} 5. Nc3 {[%emt 0:00:08]} a6 {[%emt 0:00:05]} 6. Be3 {[%emt 0:01:05]} e5 {[%emt 0:00:07]} 7. Nb3 {[%emt 0:00:17]} Be7 {[%emt 0:00:08]} 8. f3 {[%emt 0:00:39]} Be6 {[%emt 0:00:53]} 9. Qd2 {[%emt 0:00:19]} O-O {[%emt 0:08:45]} 10. O-O-O {[%emt 0:00:13]} Nbd7 {[%emt 0:00:04]} 11. g4 {[%emt 0:00:20][%cal Bg2g4,Bg4g5][%mdl 32]} b5 {[%emt 0:00:04]} 12. g5 {[%emt 0:00:28]} Nh5 {[%emt 0:00:07]} 13. Nd5 {[%emt 0:00:17]} Bxd5 {[%emt 0:00:11] B90: Sicilian Najdorf: Unusual White 6th moves, 6 Be3 Ng4 and 6 Be3 e5.} 14. exd5 {[%emt 0:00:05]} f6 {[%emt 0:00:04][%cal Rf6g5] 14...f6 scores better than 14...f5.} 15. gxf6 {[%emt 0:00:43]} Bxf6 {[%emt 0:00:06]} 16. Na5 {[%emt 0:00:18]} Qe8 {[%emt 0:01:45]} 17. Kb1 {[%emt 0:26:32]} (17. Qb4 $5 {[%cal Rb4d6]}) 17... Bd8 {[%emt 0:00:16]} 18. Nb7 {[%emt 0:02:51]} Bc7 {[%emt 0:01:57]} 19. Qc3 {[%emt 0:01:22]} Qb8 {[%emt 0:00:10]} (19... Rxf3 20. Qxc7 Rxe3 21. Nxd6 $18 (21. Qxd6 Kh8 $16)) 20. Qc6 {[%emt 0:02:26]} Rxf3 {[%emt 0:00:09]} 21. Bg1 {[%emt 0:03:09] [#] aiming for Be2.} (21. Bc5 $5 {[%cal Rc5d6]}) 21... Rf4 {[%emt 0:00:36] [#]} (21... Rf6 $5) 22. Be2 $146 {[%emt 0:44:42]} ({Predecessor:} 22. Bh3 Nhf6 23. Be6+ Kh8 24. Bxd7 Nxd7 25. Qxd7 Qxb7 26. Be3 Qc8 {½-½ Pietrzak,J (2431)-Kozlowski,W (2414) POL-ch65 final email 2022}) 22... Nhf6 {[%emt 0:05:50] And now ...Nf8 would win.} 23. h4 $1 {[%emt 0:00:09]} e4 {[%emt 0:44:08] ...Ne5 would be deadly.} 24. Bd4 {[%emt 0:00:05] Black must now prevent Rhg1.} Rf5 {[%emt 0:00:03]} (24... e3 $5 {[%cal Rf4d4]} 25. c3 (25. Bxe3 $2 Re4 $19) 25... Rxd4 26. cxd4 Ra7 $15) 25. Rhg1 {[%emt 0:11:44][%cal Og1g7] Rxg7+! is the strong threat.} (25. Rdf1 $5 {[%cal Rf1f5]} Ne5 26. Bxe5 Rxe5 27. Rxf6 gxf6 28. Rg1+ Kh8 29. Qd7 $11) 25... Ne5 {[%emt 0:01:19]} (25... Rxd5 26. Rxg7+ Kh8 27. Qxd5 Kxg7 28. Qg5+ Kf7 29. Bh5+ Nxh5 30. Qxh5+ Ke7 31. Qxh7+ Ke6 32. Qxe4+ Ne5 33. Bxe5) 26. Bxe5 {[%emt 0:00:08]} Rxe5 {[%emt 0:00:02][%cal Bf5e5,Be5e7,Be7c7][%mdl 32]} 27. Rg5 {[%emt 0:00:37] Hoping for Rxe5.} (27. Nc5 $5 Bb6 {[%mdl 64] Pin} 28. Rg5 $11 (28. Nd7 $2 Nxd7 29. Qxd7 Bxg1 $19)) 27... Re7 {[%emt 0:04:47]} 28. Nc5 $1 {[%emt 0:00:03]} Qe8 {[%emt 0:03:09]} 29. Qxe8+ {[%emt 0:01:35]} Nxe8 {[%emt 0:05:22]} 30. Ne6 {[%emt 0:00:05]} Bb6 {[%emt 0:02:43]} 31. Rf1 {[%emt 0:00:10][%csl Ge6][%cal Rf1f8] The position is equal.} Nc7 {[%emt 0:00:05]} 32. Nxc7 {[%emt 0:01:07]} Rxc7 {[%emt 0:12:13]} 33. Bg4 {[%emt 0:00:07]} g6 {[%emt 0:00:58]} 34. h5 {[%emt 0:00:36]} Kg7 {[%emt 0:00:19]} 35. hxg6 {[%emt 0:00:23]} Be3 {[%emt 0:04:07][%mdl 64] [#] Deflection} (35... hxg6 36. Bh5 (36. Bf5 Rf7 $16) 36... Kg8 37. Rxg6+ Rg7 38. Rxd6 $18) 36. Rgf5 {[%emt 0:00:23]} hxg6 {[%emt 0:01:24] An exciting game.   Weighted Error Value: White=0.09 (flawless) /Black=0.10 (very precise)} ({Much less strong is} 36... Kxg6 37. Rf6+ (37. Re1 Bd4 $11) 37... Kg5 38. Be2 $14) 1/2-1/2

[Event "Alef Super Stars Standard 2023"]
[Site "Almamsha"]
[Date "2023.11.30"]
[Round "4.1"]
[White "Salem, A.R. Saleh"]
[Black "Nihal Sarin"]
[Result "1/2-1/2"]
[WhiteElo "2635"]
[BlackElo "2692"]
[Annotator "TA"]
[PlyCount "32"]
[EventDate "2023.11.27"]
[EventType "tourn"]
[EventCountry "UAE"]
[SourceTitle "playchess.com"]
[Source "ChessBase"]
[SourceQuality "1"]
[TimeControl "40/5400+30:1800+30"]

{[%evp 13,19,0,10,14,20,13,20,22]} 1. d4 {[%emt 0:00:04]} d5 {[%emt 0:00:37]} 2. c4 {[%emt 0:00:07]} c6 {[%emt 0:00:06]} 3. Nf3 {[%emt 0:00:13]} Nf6 {[%emt 0:00:06]} 4. g3 {[%emt 0:00:27]} g6 {[%emt 0:01:22]} 5. Bg2 {[%emt 0:00:56]} Bg7 {[%emt 0:00:08]} 6. O-O {[%emt 0:00:13]} O-O {[%emt 0:00:06]} 7. Qb3 {[%emt 0:00:46]} a5 {[%emt 0:02:34] The position is equal.} 8. Rd1 {[%emt 0:00:45] D78: Fianchetto Grünfeld: 6 0-0 c6.} a4 {[%emt 0:26:13]} 9. Qb4 {[%emt 0:00:40]} Qa5 {[%emt 0:00:43]} 10. Qxa5 {[%emt 1:31:19] [#] An uneventful encounter.   Weighted Error Value: White=0.00 (flawless) /Black=0.08 (flawless)} {Predecessor:} Rxa5 $146 11. Na3 Ra8 12. h3 Na6 13. cxd5 cxd5 14. Bd2 Bf5 15. Bf1 Rfc8 16. e3 Ne4 {½-½ Salem,A (2677)-Kadric,D (2601) Sharjah Masters 6th 2023 (2)} 1/2-1/2

[Event "Alef Super Stars Standard 2023"]
[Site "Almamsha"]
[Date "2023.11.30"]
[Round "4.2"]
[White "Sjugirov, Sanan"]
[Black "Yu, Yangyi"]
[Result "1/2-1/2"]
[ECO "C42"]
[WhiteElo "2703"]
[BlackElo "2720"]
[Annotator "TA"]
[PlyCount "144"]
[EventDate "2023.11.27"]
[EventType "tourn"]
[EventCountry "UAE"]
[SourceTitle "playchess.com"]
[Source "ChessBase"]
[SourceQuality "1"]
[TimeControl "40/5400+30:1800+30"]

{[%evp 25,144,15,10,18,16,16,2,21,15,1,1,6,6,16,5,15,18,6,6,6,7,8,6,10,8,9,33,20,13,18,14,13,13,14,17,20,20,8,12,6,10,7,37,39,33,25,36,33,36,34,30,35,29,29,33,29,27,37,38,48,66,64,62,25,24,8,11,8,8,8,8,8,8,8,8,8,8,8,8,8,8,8,16,18,33,26,26,26,26,26,26,31,26,20,20,20,20,20,20,8,13,8,27,20,21,0,0,0,0,0,0,0,0,0,0,0,0,0,8,8,8]} 1. e4 {[%emt 0:00:06]} e5 {[%emt 0:00:12]} 2. Nf3 {[%emt 0:00:09]} Nf6 {[%emt 0:00:37]} 3. Nxe5 {[%emt 0:00:11]} d6 {[%emt 0:00:06]} 4. Nf3 {[%emt 0:00:07]} Nxe4 {[%emt 0:00:09]} 5. d4 {[%emt 0:00:05]} d5 {[%emt 0:00:18]} 6. Bd3 {[%emt 0:00:09]} Nc6 {[%emt 0:00:42]} 7. O-O {[%emt 0:00:12]} Be7 {[%emt 0:00:10]} 8. c4 {[%emt 0:00:21]} Nb4 {[%emt 0:00:45]} 9. Be2 {[%emt 0:00:13]} O-O {[%emt 0:00:14]} 10. Nc3 {[%emt 0:00:30]} Bf5 {[%emt 0:00:47]} 11. a3 {[%emt 0:00:28]} Nxc3 {[%emt 0:00:43]} 12. bxc3 {[%emt 0:00:06]} Nc6 {[%emt 0:00:10]} 13. Re1 {[%emt 0:00:12]} Re8 {[%emt 0:03:17]} 14. Bf4 {[%emt 0:00:35] C42: Petroff Defence: 3 Nxe5 and unusual White 3rd moves.} dxc4 {[%emt 0:02:45]} 15. Bxc4 {[%emt 0:00:09]} Bd6 {[%emt 0:00:12]} 16. Rxe8+ {[%emt 0:00:19] 16.Rxe8+ has lost popularity.} Qxe8 {[%emt 0:00:02]} 17. Bxd6 {[%emt 0:00:11]} cxd6 {[%emt 0:00:11]} 18. Ng5 {[%emt 0:00:07][%cal Bf3g5,Bg5h3,Bh3f4,Bf4d5,Bd5e3][%mdl 32]} Bg6 {[%emt 0:04:56]} 19. h4 {[%emt 0:00:09] [#] Black must now prevent h5.} Qe7 {[%emt 0:02:08]} 20. g3 {[%emt 0:00:10] [#]} Rd8 $146 {[%emt 0:05:57]} ({Predecessor:} 20... Re8 21. Nh3 Qd7 22. Nf4 Na5 23. Bf1 Be4 {½-½ Freeman,M (2529)-Helbich,J (2518) SUI-ch35 B email 2020}) 21. Bd5 {[%emt 0:11:15]} h6 {[%emt 0:02:20]} 22. Nh3 {[%emt 0:01:03]} Be4 {[%emt 0:00:33]} 23. Nf4 {[%emt 0:08:40]} Bxd5 {[%emt 0:01:26]} 24. Nxd5 {[%emt 0:00:10]} Qe4 {[%emt 0:00:42]} 25. Ne3 {[%emt 0:04:40]} Rc8 {[%emt 0:08:51]} 26. Qh5 {[%emt 0:27:04]} Ne7 {[%emt 0:06:08]} 27. Qb5 {[%emt 0:04:25]} Qc6 {[%emt 0:08:01]} 28. Qxc6 {[%emt 0:10:22]} Rxc6 $11 {[%emt 0:00:52][%mdl 4096] Endgame KRN-KRN} 29. Rb1 {[%emt 0:00:08]} b6 {[%emt 0:05:33]} 30. Rb3 {[%emt 0:03:29]} g5 {[%emt 0:08:00]} 31. hxg5 {[%emt 0:11:01]} hxg5 {[%emt 0:00:02]} 32. Kf1 {[%emt 0:00:09]} f5 {[%emt 0:02:23]} 33. Ke2 {[%emt 0:00:25]} Kf7 {[%emt 0:02:40]} 34. Kd3 {[%emt 0:00:55]} d5 {[%emt 0:01:45]} 35. a4 {[%emt 0:04:30]} a6 {[%emt 0:16:31]} 36. Rb1 {[%emt 0:08:36]} Rh6 {[%emt 0:00:31]} 37. c4 {[%emt 0:01:08]} dxc4+ {[%emt 0:00:20]} 38. Kxc4 {[%emt 0:02:25]} Ke8 {[%emt 0:00:22]} 39. d5 {[%emt 0:02:12]} f4 $1 {[%emt 0:13:57]} 40. gxf4 {[%emt 0:00:40]} gxf4 {[%emt 0:00:05]} 41. Ng4 {[%emt 0:30:28]} Rd6 {[%emt 0:30:55]} 42. Rd1 {[%emt 0:00:34]} Kd8 {[%emt 0:00:00]} 43. Ne5 {[%emt 0:00:00]} Kc8 {[%emt 0:00:00]} 44. Rd4 {[%emt 0:00:00]} Kb7 {[%emt 0:00:00]} 45. Nd3 {[%emt 0:00:00]} f3 {[%emt 0:00:00]} 46. Ne5 {[%emt 0:04:42]} Rd8 {[%emt 0:00:00]} 47. Rd3 {[%emt 0:00:00]} Rc8+ {[%emt 0:00:00]} 48. Kd4 {[%emt 0:00:00]} Nf5+ $1 {[%emt 0:00:00]} 49. Ke4 {[%emt 0:00:00]} Nd6+ {[%emt 0:00:00]} 50. Kxf3 {[%emt 0:00:00]} Rc2 {[%emt 0:00:00]} 51. Rd4 {[%emt 0:00:00]} a5 {[%emt 0:00:00]} 52. Rg4 {[%emt 0:00:00]} b5 {[%emt 0:00:00]} 53. axb5 {[%emt 0:00:00] Threatens to win with Rg6.} Nxb5 {[%emt 0:00:00]} 54. Nc4 {[%emt 0:00:00]} a4 {[%emt 0:00:00]} 55. Ne3 {[%emt 0:01:42][%csl LRa4,LRc2]} Ra2 {[%emt 0:00:00]} 56. Rb4 {[%emt 0:00:11]} Kb6 {[%emt 0:00:00]} 57. d6 {[%emt 0:00:26] Nc4+ would be deadly.} Kc6 {[%emt 0:00:00] [#]} 58. d7 $1 {[%emt 0:01:02]} Rd2 {[%emt 0:00:02]} 59. Nc4 {[%emt 0:02:16] Repels a3} Rxd7 {[%emt 0:00:29]} (59... Rd3+ {seems wilder.} 60. Ke4 Rd4+ 61. Ke3 Rxd7 62. Ne5+ Kc5) 60. Ne5+ {[%emt 0:00:12]} Kc5 {[%emt 0:00:01]} 61. Rxa4 {[%emt 0:00:10]} (61. Nxd7+ Kxb4 62. Nb6 a3 63. Nd5+ Kb3 $19) ({Don't go for} 61. Rxb5+ $2 Kxb5 62. Nxd7 a3 $19) 61... Ra7 {[%emt 0:01:25]} 62. Rh4 {[%emt 0:00:36]} Kd5 {[%emt 0:00:16]} 63. Rh5 {[%emt 0:00:19]} Ke6 {[%emt 0:03:15]} 64. Nc4 {[%emt 0:00:33] Hoping for Re5+.} Rf7+ {[%emt 0:01:02] The position is equal.} 65. Ke4 {[%emt 0:00:28]} Nc3+ {[%emt 0:01:39]} 66. Kd4 {[%emt 0:00:07]} Nd1 {[%emt 0:01:12]} 67. Re5+ {[%emt 0:00:19]} Kd7 {[%emt 0:00:12]} 68. Rd5+ {[%emt 0:01:36]} Ke7 {[%emt 0:00:30]} 69. Re5+ {[%emt 0:00:45]} Kf8 {[%emt 0:00:15]} 70. Nd6 {[%emt 0:00:25]} Rf4+ {[%emt 0:00:11]} 71. Re4 {[%emt 0:00:03]} Rxe4+ {[%emt 0:00:05]} 72. Nxe4 {[%emt 0:00:04]} Nxf2 {[%emt 0:00:04] Weighted Error Value: White=0.03 (flawless) /Black=0.02 (flawless)} 1/2-1/2

[Event "Alef Super Stars Standard 2023"]
[Site "Almamsha"]
[Date "2023.12.02"]
[Round "5.1"]
[White "Sjugirov, Sanan"]
[Black "Salem, A.R. Saleh"]
[Result "1-0"]
[ECO "B51"]
[WhiteElo "2703"]
[BlackElo "2635"]
[Annotator "ChessBase"]
[PlyCount "83"]
[EventDate "2023.11.27"]
[EventType "tourn"]
[EventCountry "UAE"]
[SourceTitle "playchess.com"]
[Source "ChessBase"]
[SourceQuality "1"]
[TimeControl "40/5400+30:1800+30"]

1. e4 {[%emt 0:00:04]} c5 {[%emt 0:01:54]} 2. Nf3 {[%emt 0:00:16]} d6 {[%emt 0:00:10]} 3. Bb5+ {[%emt 0:00:39]} Nd7 {[%emt 0:00:10]} 4. O-O {[%emt 0:00:18]} a6 {[%emt 0:00:12]} 5. Bd3 {[%emt 0:00:12]} Ngf6 {[%emt 0:00:09]} 6. Re1 {[%emt 0:00:16]} e6 {[%emt 0:00:20]} 7. Bf1 {[%emt 0:00:23]} b6 {[%emt 0:01:06]} 8. c3 {[%emt 0:00:15]} Bb7 {[%emt 0:00:37]} 9. d3 {[%emt 0:00:08]} Be7 {[%emt 0:07:45]} 10. Nbd2 {[%emt 0:00:11]} O-O {[%emt 0:01:13]} 11. d4 {[%emt 0:00:50]} cxd4 {[%emt 0:02:33]} 12. cxd4 {[%emt 0:00:06]} Rc8 {[%emt 0:20:13]} 13. Bd3 {[%emt 0:01:42]} Rc7 {[%emt 0:01:12]} 14. Nf1 {[%emt 0:02:22]} d5 {[%emt 0:07:07]} 15. e5 {[%emt 0:02:12]} Ne4 {[%emt 0:00:06]} 16. Ng3 {[%emt 0:11:36]} Qa8 {[%emt 0:00:11]} 17. Qe2 {[%emt 0:03:21]} Rfc8 {[%emt 0:01:18]} 18. Bf4 {[%emt 1:14:39]} Bb4 {[%emt 0:16:16]} 19. Red1 {[%emt 0:00:00]} Nf8 {[%emt 0:14:00]} 20. h4 {[%emt 0:00:00]} h6 {[%emt 0:03:49]} 21. Nh5 {[%emt 0:00:00]} Ng6 {[%emt 0:00:45]} 22. Be3 {[%emt 0:00:00]} Bf8 {[%emt 0:20:24]} 23. g4 {[%emt 0:00:00]} Be7 {[%emt 0:00:00]} 24. g5 {[%emt 0:00:00]} hxg5 {[%emt 0:00:00]} 25. hxg5 {[%emt 0:00:00]} Rc4 {[%emt 0:00:00]} 26. Qf1 {[%emt 0:00:00]} Kf8 {[%emt 0:00:00]} 27. Qh3 {[%emt 0:00:00]} Ke8 {[%emt 0:00:00]} 28. Nxg7+ {[%emt 0:00:00]} Kd7 {[%emt 0:00:00]} 29. Nh5 {[%emt 0:00:00]} Rh8 {[%emt 0:00:00]} 30. Qg4 {[%emt 0:00:00]} Qg8 {[%emt 0:00:32]} 31. Bxc4 {[%emt 0:00:00]} dxc4 {[%emt 0:00:42]} 32. d5 {[%emt 0:00:00]} Ke8 {[%emt 0:02:09]} 33. Nf6+ {[%emt 0:00:00]} Bxf6 {[%emt 0:01:03]} 34. exf6 {[%emt 0:00:00]} Qh7 {[%emt 0:00:56]} 35. Kf1 {[%emt 0:00:00]} Nf8 {[%emt 0:00:35]} 36. Ke2 {[%emt 0:00:00]} c3 {[%emt 0:00:17]} 37. Qf4 {[%emt 0:00:00]} Nd7 {[%emt 0:00:42]} 38. dxe6 {[%emt 0:00:00]} Ng3+ {[%emt 0:00:33]} 39. Qxg3 {[%emt 0:00:03]} Qc2+ {[%emt 0:00:28]} 40. Nd2 {[%emt 0:00:29]} Be4 {[%emt 0:00:32]} 41. exd7+ {[%emt 0:30:32]} Kxd7 {[%emt 0:30:05]} 42. Qg4+ {[%emt 0:00:28]} 1-0

[Event "Alef Super Stars Standard 2023"]
[Site "Almamsha"]
[Date "2023.12.02"]
[Round "5.2"]
[White "Yu, Yangyi"]
[Black "Nihal Sarin"]
[Result "1/2-1/2"]
[ECO "C77"]
[WhiteElo "2720"]
[BlackElo "2692"]
[Annotator "TA"]
[PlyCount "201"]
[EventDate "2023.11.27"]
[EventType "tourn"]
[EventCountry "UAE"]
[SourceTitle "playchess.com"]
[Source "ChessBase"]
[SourceQuality "1"]
[TimeControl "40/5400+30:1800+30"]

{[%evp 19,201,10,31,25,35,35,41,41,48,28,38,32,37,37,62,25,50,22,14,17,22,30,48,42,57,27,26,19,21,0,0,0,0,0,0,-8,26,0,9,0,0,0,0,0,0,0,64,64,59,47,60,50,77,57,82,83,83,89,91,63,93,93,97,83,99,99,99,98,99,99,99,99,100,100,118,118,143,143,143,143,139,136,137,143,146,143,143,143,144,143,146,129,157,137,145,108,122,104,104,0,109,124,117,116,124,124,137,133,136,80,73,72,79,68,72,72,72,72,72,68,77,29,30,29,29,29,72,72,79,0,36,29,29,29,29,29,29,29,29,29,29,29,29,30,30,30,30,29,30,30,30,30,30,9,19,25,30,2,6,0,0,0,0,0,0,0,0,0,0,0,0,0,0,0,0,0,0,0,0,0,0,0,0,0]} 1. e4 {[%emt 0:00:03]} e5 {[%emt 0:00:47]} 2. Nf3 {[%emt 0:00:08]} Nc6 {[%emt 0:00:06]} 3. Bb5 {[%emt 0:00:35]} Nf6 {[%emt 0:02:54]} 4. d3 {[%emt 0:00:34]} Bc5 {[%emt 0:00:07]} 5. Ba4 {[%emt 0:00:23]} a6 {[%emt 0:00:33]} 6. c3 {[%emt 0:01:16]} b5 {[%emt 0:02:07]} 7. Bb3 {[%emt 0:00:20]} d6 {[%emt 0:01:29]} 8. Bg5 {[%emt 0:00:40]} h6 {[%emt 0:01:04]} 9. Bh4 {[%emt 0:00:11]} Bb6 {[%emt 0:02:10]} 10. a4 {[%emt 0:05:11]} Rb8 {[%emt 0:04:02]} (10... g5 $5 {[%cal Rg5h4]} 11. Bg3 (11. axb5 Na5 $15) 11... b4 $11) 11. axb5 {[%emt 0:01:33]} axb5 {[%emt 0:00:06]} 12. Na3 {[%emt 0:01:08]} Bd7 {[%emt 0:20:07]} 13. Nxb5 {[%emt 0:07:08]} Bxf2+ {[%emt 0:02:55]} 14. Bxf2 {[%emt 0:01:52]} Rxb5 {[%emt 0:00:06]} 15. O-O {[%emt 0:00:20]} Qb8 {[%emt 0:02:19]} 16. Nd2 {[%emt 0:03:16]} O-O {[%emt 0:13:42]} 17. Ba4 {[%emt 0:09:42]} Ra5 {[%emt 0:10:32]} 18. Nc4 {[%emt 0:07:20]} (18. b4 {seems wilder.} Ra8 19. Bh4 Bg4 20. Qc2) 18... Ra6 {[%emt 0:04:18]} 19. Kh1 {[%emt 0:13:07]} Be6 {[%emt 0:21:36]} 20. b3 {[%emt 0:01:11]} Na5 {[%emt 0:04:11]} 21. Nd2 {[%emt 0:07:47]} c5 {[%emt 0:00:25]} 22. Rb1 {[%emt 0:00:07]} Nc6 {[%emt 0:00:37]} 23. h3 {[%emt 0:00:58]} Nd7 {[%emt 0:01:47]} 24. Nc4 {[%emt 0:02:23]} Ne7 {[%emt 0:01:24]} 25. b4 {[%emt 0:03:15]} cxb4 {[%emt 0:00:05]} 26. cxb4 {[%emt 0:00:05]} d5 {[%emt 0:00:06]} 27. Na5 {[%emt 0:01:19]} d4 {[%emt 0:01:36]} 28. Bg3 {[%emt 0:00:59]} (28. Be1 $5 {[%cal Rb4b5]}) 28... f6 {[%emt 0:01:44]} 29. Qd2 {[%emt 0:01:19]} Rc8 {[%emt 0:00:50]} 30. Rfc1 {[%emt 0:00:58]} Rxc1+ {[%emt 0:00:31]} 31. Rxc1 {[%emt 0:00:22]} Rb6 {[%emt 0:00:40]} 32. b5 {[%emt 0:01:25]} Rxb5 {[%emt 0:00:24]} ({Black should try} 32... Qd6 $11) 33. Bxb5 $14 {[%emt 0:00:06]} Qxb5 {[%emt 0:00:03]} 34. Rc7 {[%emt 0:03:34]} Kh7 {[%emt 0:01:12]} 35. Kh2 {[%emt 0:04:18]} Ng6 {[%emt 0:00:30]} 36. Nb7 {[%emt 0:00:22]} Qb6 {[%emt 0:00:47]} 37. Qa5 {[%emt 0:04:54]} Qxa5 {[%emt 0:00:16]} 38. Nxa5 {[%emt 0:00:01]} h5 {[%emt 0:00:15]} 39. Nb7 {[%emt 0:01:23]} Kg8 {[%emt 0:01:01]} 40. Kg1 {[%emt 0:10:30]} h4 {[%emt 0:00:20]} 41. Bh2 {[%emt 0:35:25]} Ndf8 {[%emt 0:16:11]} 42. Kf2 {[%emt 0:00:00]} Ba2 {[%emt 0:05:48]} 43. Rc8 {[%emt 0:00:00]} Kh7 {[%emt 0:01:48]} 44. Ra8 {[%emt 0:00:00]} Bb3 {[%emt 0:01:31]} 45. Nc5 {[%emt 0:00:00]} Bf7 {[%emt 0:00:34]} 46. Ra6 {[%emt 0:00:00]} Be8 {[%emt 0:02:57]} 47. Ra7 {[%emt 0:00:00]} Kg8 {[%emt 0:00:16]} 48. Kf3 {[%emt 0:00:00]} Bf7 {[%emt 0:02:21]} 49. Ra8 {[%emt 0:00:00]} Kh7 {[%emt 0:00:14]} 50. Ra6 $1 {[%emt 0:00:00]} Ne7 {[%emt 0:01:52]} 51. Kg4 {[%emt 0:00:00]} Nfg6 {[%emt 0:00:05]} 52. Ra7 {[%emt 0:00:00]} Ng8 {[%emt 0:00:20]} 53. Kf3 {[%emt 0:00:00]} ({Worse is} 53. Rxf7 Nh6+ 54. Kh5 Nxf7 $15) 53... Nh6 {[%emt 0:00:06]} 54. Ke2 {[%emt 0:00:00]} Kg8 {[%emt 0:02:46]} 55. Kd2 {[%emt 0:00:00]} Be8 {[%emt 0:00:31]} 56. Kc2 {[%emt 0:00:00]} Nf8 {[%emt 0:00:53]} 57. Kb2 {[%emt 0:01:21]} g5 {[%emt 0:00:25]} 58. Ra8 {[%emt 0:01:21]} Kf7 {[%emt 0:00:12]} 59. Ra7+ {[%emt 0:03:49]} ({White should play} 59. Ra6 $16) 59... Kg6 {[%emt 0:00:30]} (59... Kg8 $1 $11) 60. Ra6 $16 {[%emt 0:00:22]} Kg7 {[%emt 0:00:16] [#]} 61. g4 $1 {[%emt 0:02:55]} Ng8 {[%emt 0:01:01]} 62. Ra7+ {[%emt 0:00:27]} Kg6 {[%emt 0:00:34]} 63. Kc2 {[%emt 0:00:59]} Bf7 {[%emt 0:00:30]} 64. Ra6 {[%emt 0:01:11]} (64. Nb7 $142) 64... Kg7 $16 {[%emt 0:00:05]} 65. Kd2 {[%emt 0:00:08]} Ne7 {[%emt 0:00:27]} 66. Ke2 {[%emt 0:00:06]} Neg6 {[%emt 0:00:12]} 67. Kf3 {[%emt 0:00:14]} Be8 {[%emt 0:00:28]} 68. Ra7+ {[%emt 0:00:38]} Kg8 {[%emt 0:00:01]} 69. Nb7 {[%emt 0:01:14]} Bd7 {[%emt 0:01:29] [#]} 70. Nd6 {[%emt 0:00:08]} ({Better is} 70. Nd8 $1 $16) 70... Ne7 $1 $11 {[%emt 0:00:05]} 71. Ra8 {[%emt 0:00:37]} Neg6 {[%emt 0:00:42]} 72. Rb8 {[%emt 0:00:57]} Kg7 {[%emt 0:00:19]} 73. Rb7 {[%emt 0:00:39]} Kg8 {[%emt 0:00:04]} 74. Ra7 {[%emt 0:00:14]} Ne7 $1 {[%emt 0:00:57]} 75. Nc4 {[%emt 0:00:02]} Kf7 {[%emt 0:00:35]} 76. Nb6 {[%emt 0:00:32]} Ke6 {[%emt 0:00:48]} 77. Ra8 {[%emt 0:00:54]} Nfg6 {[%emt 0:00:42]} 78. Ke2 {[%emt 0:00:56]} Bc6 {[%emt 0:00:16]} 79. Rb8 {[%emt 0:00:56]} Kd6 {[%emt 0:00:20]} 80. Nc4+ {[%emt 0:00:18]} Kc7 {[%emt 0:00:33]} 81. Rb1 {[%emt 0:00:03]} Kd7 {[%emt 0:00:18]} 82. Kd2 {[%emt 0:00:10]} ({Much less strong is} 82. Rb6 Nc8 $16) 82... Nc8 {[%emt 0:00:30]} 83. Na5 {[%emt 0:01:20]} Nce7 {[%emt 0:01:02]} 84. Rb8 {[%emt 0:00:26]} Kc7 {[%emt 0:00:07]} 85. Rb4 {[%emt 0:00:35]} Kd7 $1 {[%emt 0:00:04]} 86. Rb6 {[%emt 0:00:13]} Nf8 {[%emt 0:01:05]} 87. Ra6 {[%emt 0:00:02]} Ne6 {[%emt 0:00:23]} 88. Ra7+ {[%emt 0:00:20]} Nc7 {[%emt 0:00:04]} 89. Nb3 {[%emt 0:00:49]} Nc8 {[%emt 0:00:09]} 90. Ra1 {[%emt 0:00:06]} Ne6 {[%emt 0:00:32]} 91. Rf1 {[%emt 0:01:07]} Ke7 {[%emt 0:00:05]} 92. Ra1 {[%emt 0:00:45]} Kd7 {[%emt 0:00:06]} 93. Ra5 {[%emt 0:00:02]} Nd6 {[%emt 0:00:29]} 94. Ra7+ {[%emt 0:00:10]} Ke8 {[%emt 0:00:42]} 95. Na5 {[%emt 0:01:22]} Bb5 {[%emt 0:00:06]} 96. Nb7 {[%emt 0:00:22]} Nxb7 {[%emt 0:00:50]} 97. Rxb7 {[%emt 0:00:01]} Bd7 {[%emt 0:00:37]} 98. Ra7 {[%emt 0:00:54]} Ke7 {[%emt 0:00:07]} 99. Ra5 {[%emt 0:00:49]} Kd6 {[%emt 0:00:15]} 100. Ra6+ {[%emt 0:01:02]} Ke7 {[%emt 0:00:12]} 101. Ra5 {[%emt 0:00:36]} 1/2-1/2